bitfinex/quotes_ETHUSD_20250106
["timestamp","ask_amount","ask_price","bid_price","bid_amount"]
[1736152051699,0.8096,3649.0,3648.4,0.55]
[1736152051897,0.8096,3649.0,3648.7,0.55]
[1736152052189,1.14498092,3649.8,3648.9,2.74055]
[1736152052328,0.8096,3649.7,3649.1,0.55]
[1736152052508,0.8096,3649.7,3649.2,0.06907726]
[1736152052709,2.74004,3649.6,3648.4,2.7409]
[1736152052907,0.7993,3649.5,3648.5,0.61948669]
[1736152053111,2.74017,3649.4,3648.5,0.61948669]
[1736152053318,0.7993,3649.2,3648.5,0.61948669]
[1736152059046,0.7993,3649.2,3648.5,0.06948669]
[1736152059548,0.8208,3649.0,3648.6,0.06905366]
[1736152059713,0.8208,3649.0,3648.2,0.55]
[1736152060047,0.8208,3649.0,3648.3,0.06928006]
[1736152061304,0.8208,3649.0,3648.4,0.55]
[1736152061498,0.8208,3649.0,3648.5,0.06915578]
[1736152065963,0.8208,3649.0,3648.6,35.0]
[1736152066266,6.302,3649.0,3648.7,0.06903879]
[1736152066763,6.302,3649.0,3648.4,2.74092]
[1736152067066,6.302,3649.0,3648.5,35.06915578]
[1736152068622,5.4812,3649.0,3648.9,2.74055]
[1736152068773,5.4812,3649.0,3648.9,3.55475]
[1736152068968,5.4812,3649.0,3648.9,3.62364272]
[1736152070709,5.4812,3649.0,3648.9,5.99777792]
[1736152071452,5.4812,3649.0,3648.9,6.54777792]
[1736152072204,5.4812,3649.0,3648.9,41.54777792]
[1736152073444,5.4812,3649.0,3648.9,40.99777792]
[1736152073753,6.2702,3649.0,3648.9,2.44302792]
[1736152074056,6.81832,3649.0,3648.9,2.44302792]
[1736152074960,6.81832,3649.0,3648.9,0.06889272]
[1736152075252,6.81832,3649.0,3648.1,2.74113]
[1736152075553,6.2702,3649.0,3648.1,2.74113]
[1736152075751,6.2702,3649.0,3648.2,0.0668076]
[1736152078407,0.8052,3648.9,3648.2,0.0668076]
[1736152078608,0.7955,3648.6,3648.2,0.0668076]
[1736152078807,6.2767,3648.6,3648.2,0.0668076]
[1736152079053,0.7955,3648.4,3648.2,0.0668076]
[1736152079209,0.7955,3648.3,3648.2,0.0668076]
[1736152079412,6.2767,3648.3,3648.2,0.0668076]
[1736152079850,6.2767,3648.3,3647.9,1.14546925]
[1736152080046,6.2767,3648.3,3648.2,0.06509543]
[1736152080215,6.2767,3648.3,3647.5,2.56919064]
[1736152080415,6.2767,3648.3,3648.2,0.06509543]
[1736152080742,6.2767,3648.3,3647.5,2.56919064]
[1736152081055,6.2767,3648.3,3647.6,0.06544655]
[1736152081453,6.2767,3648.3,3647.6,2.80696655]
[1736152082942,6.2767,3648.3,3647.7,0.94961805]
[1736152083104,6.2767,3648.3,3647.8,0.0653295]
[1736152084554,6.2767,3648.3,3647.6,2.74152]
[1736152084755,6.2767,3648.3,3647.7,3.57781802]
[1736152085128,6.2767,3648.3,3647.8,2.74136]
[1736152085359,6.2767,3648.3,3647.9,0.06527098]
[1736152088371,3.50351,3648.2,3647.9,0.06527098]
[1736152088573,0.7624,3648.1,3647.6,1.14546925]
[1736152088742,6.2436,3648.1,3647.6,1.14546925]
[1736152088946,6.2436,3648.1,3647.7,0.06550782]
[1736152089534,5.4812,3648.1,3647.7,3.58313782]
[1736152089972,5.4812,3648.1,3647.8,0.55]
[1736152090179,5.4812,3648.1,3647.9,0.06539078]
[1736152091065,5.4812,3648.1,3647.9,1.01520705]
[1736152091261,5.4812,3648.1,3647.9,3.75648705]
[1736152092370,5.4812,3648.1,3648.0,0.94981627]
[1736152092556,5.4812,3648.1,3648.0,1.01514853]
[1736152094362,4.55392697,3648.1,3648.0,10.7741249]
[1736152094757,4.55392697,3648.1,3648.0,9.82430863]
[1736152094950,4.55392697,3648.1,3648.0,3.89563226]
[1736152095187,4.55392697,3648.1,3648.0,0.06533226]
[1736152095368,4.55392697,3648.1,3648.0,2.74122]
[1736152095699,4.55392697,3648.1,3648.0,2.80655226]
[1736152097737,4.55392697,3648.1,3648.0,3.75611298]
[1736152098017,4.55392697,3648.1,3648.0,4.30611298]
[1736152099979,4.55392697,3648.1,3648.0,1.01489298]
[1736152100412,5.35792697,3648.1,3648.0,1.01489298]
[1736152100609,4.55392697,3648.1,3648.0,3.75611298]
[1736152100795,4.55392697,3648.1,3648.0,4.30611298]
[1736152101431,4.55392697,3648.1,3648.0,8.07211298]
[1736152102343,4.55392697,3648.1,3648.0,7.12255226]
[1736152103905,4.55392697,3648.1,3648.0,10.83775394]
[1736152103906,3.18334697,3648.1,3648.0,10.83775394]
[1736152104246,6.97e-06,3648.1,3648.0,13.47521031]
[1736152104454,0.7572,3649.3,3648.2,0.8108]
[1736152104603,0.7572,3649.3,3649.0,5.37790637]
[1736152106551,0.7512,3649.9,3649.1,2.74038]
[1736152106709,3.46877592,3649.9,3649.1,2.74038]
[1736152107150,3.46877592,3649.9,3649.2,3.29028]
[1736152107347,0.7512,3649.9,3649.2,3.29028]
[1736152107974,0.7512,3649.9,3649.1,0.55]
[1736152108142,0.7512,3649.9,3649.3,2.74021]
[1736152108996,0.7512,3649.9,3649.3,5.37766637]
[1736152109213,3.43301161,3651.4,3649.9,2.7398]
[1736152109415,12.2615509,3656.5,3653.4,0.25]
[1736152109622,6.2722085,3655.6,3655.5,8.01051274]
[1736152109918,5.74713269,3656.5,3656.2,0.55]
[1736152110096,5.74713269,3656.5,3656.0,3.28522]
[1736152110097,0.25,3659.4,3656.5,0.55]
[1736152110256,0.25,3658.9,3658.2,2.73351]
[1736152110607,0.7625,3660.0,3657.7,0.55]
[1736152110608,0.25,3658.3,3657.7,0.55]
[1736152110791,0.25,3658.0,3657.9,0.55]
[1736152111116,0.25,3658.0,3657.9,0.07955347]
[1736152111280,0.25,3658.0,3657.9,2.71700984]
[1736152111607,0.21437841,3658.0,3657.9,0.05222688]
[1736152111918,0.21437841,3658.0,3657.9,14.05610801]
[1736152112219,0.21437841,3658.0,3657.9,14.27837111]
[1736152112707,2.73326,3658.7,3657.9,14.27837111]
[1736152112708,2.63745637,3658.9,3658.1,0.25]
[1736152112884,3.0,3658.0,3657.9,0.03937173]
[1736152113085,0.55,3657.9,3657.3,0.25]
[1736152113398,0.55,3657.5,3655.8,3.36073277]
[1736152113611,3.0,3657.4,3655.8,3.10363945]
[1736152113831,0.55,3657.2,3655.9,0.03499404]
[1736152113950,0.482433,3657.1,3655.3,3.10363945]
[1736152114151,0.4816327,3657.1,3655.9,3.70829317]
[1736152114546,0.4816327,3657.1,3656.0,0.03390799]
[1736152114999,0.154,3657.0,3656.8,1.12142345]
[1736152115194,0.154,3657.0,3656.9,0.03338423]
[1736152115609,2.73455,3656.9,3656.7,1.19018817]
[1736152115884,0.7895,3656.8,3656.7,1.19018817]
[1736152116281,0.7895,3656.8,3656.1,2.2428469]
[1736152116458,0.154,3657.0,3656.1,2.2428469]
[1736152116659,2.73467,3656.8,3656.1,2.2428469]
[1736152116894,2.73467,3656.8,3655.9,5.95114007]
[1736152117098,0.154,3657.0,3655.9,5.95114007]
[1736152117272,0.55,3656.9,3655.8,2.2428469]
[1736152117497,0.05295985,3656.8,3655.8,2.2428469]
[1736152117781,2.73506,3656.3,3655.8,2.2428469]
[1736152118296,2.73511,3656.2,3655.4,2.2428469]
[1736152118872,2.73511,3656.2,3655.2,5.2428469]
[1736152119102,0.273511,3656.1,3655.2,5.2428469]
[1736152119495,0.273511,3656.1,3655.2,3.0]
[1736152120395,0.273511,3656.1,3655.1,3.0]
[1736152120767,0.273511,3656.1,3655.0,2.2428469]
[1736152120768,0.273511,3656.1,3655.2,3.13578847]
[1736152120971,0.154,3656.0,3655.6,3.10363945]
[1736152121159,0.154,3655.9,3655.6,3.10363945]
[1736152121355,0.154,3655.9,3655.7,0.03185763]
[1736152121903,0.154,3655.9,3655.8,0.03179936]
[1736152122104,0.154,3655.9,3655.8,9.36e-06]
[1736152122415,2.7359,3655.1,3655.0,2.2428469]
[1736152122760,2.7359,3655.1,3655.0,2.27152553]
[1736152122993,2.7359,3655.1,3655.0,0.02867863]
[1736152123206,2.7359,3655.1,3654.0,2.2428469]
[1736152123407,2.73637,3654.5,3654.0,2.2428469]
[1736152123707,0.154,3654.4,3654.1,0.02920339]
[1736152125109,0.154,3654.4,3653.1,0.7636]
[1736152125476,2.89045,3654.4,3653.2,0.0297284]
[1736152125879,0.27359,3655.0,3653.2,0.0297284]
[1736152126078,0.154,3654.3,3653.2,0.68281324]
[1736152126276,0.154,3654.2,3653.2,0.68281324]
[1736152126512,0.154,3654.1,3653.2,0.68281324]
[1736152126803,0.154,3654.1,3653.4,3.0]
[1736152127175,0.154,3654.1,3653.5,0.02955337]
[1736152127390,0.154,3654.1,3653.2,0.65308484]
[1736152127703,0.154,3654.1,3653.3,0.02967006]
[1736152127870,2.89066,3654.1,3653.3,0.02967006]
[1736152128062,2.89066,3654.1,3653.1,0.005]
[1736152128255,2.89066,3654.1,3653.2,3.0]
[1736152128461,2.89066,3654.1,3653.2,3.0288168]
[1736152128658,3.179726,3654.1,3653.2,3.0288168]
[1736152130075,0.154,3654.0,3653.2,0.0288168]
[1736152130962,3.53810479,3654.9,3653.2,0.0288168]
[1736152131213,0.154,3653.9,3653.2,0.0288168]
[1736152132309,0.154,3653.8,3653.2,0.0288168]
[1736152132667,0.443081,3653.8,3653.2,0.0288168]
[1736152134119,0.154,3653.7,3653.3,35.0]
[1736152134423,5.6282,3653.7,3653.4,0.02778232]
[1736152134626,0.154,3653.6,3653.1,0.005]
[1736152134831,0.154,3653.6,3653.5,0.02772398]
[1736152134983,0.154,3653.6,3653.5,35.0]
[1736152135183,0.154,3653.6,3653.5,35.02772398]
[1736152136121,0.1532,3653.6,3653.5,35.02772398]
[1736152136417,1.79273162,3653.7,3653.5,0.02772398]
[1736152136617,1.79273162,3653.7,3653.4,2.73717]
[1736152136822,1.94673162,3653.7,3653.5,0.30144098]
[1736152137027,1.94673162,3653.7,3653.6,35.0]
[1736152137235,1.94673162,3653.7,3653.6,35.02964176]
[1736152137608,0.154,3653.7,3653.6,35.02964176]
[1736152137921,0.154,3653.7,3653.6,35.11524418]
[1736152138119,0.154,3653.7,3653.6,35.3378047]
[1736152138891,0.154,3653.7,3653.6,35.47476543]
[1736152139885,0.159,3653.7,3653.6,35.47476543]
[1736152140108,3.60841745,3656.3,3653.8,2.73687]
[1736152140318,0.159,3655.8,3653.8,2.73687]
[1736152140518,2.73582,3655.3,3653.9,0.2508408]
[1736152140824,2.73583,3655.2,3653.9,0.47340132]
[1736152141027,0.355923,3655.1,3654.0,0.22256315]
[1736152141234,0.514923,3655.1,3654.1,0.028161]
[1736152141539,0.514923,3655.1,3654.1,0.47328467]
[1736152141831,2.73615,3654.8,3654.1,0.47328467]
[1736152142033,0.159,3655.1,3654.1,0.47328467]
[1736152142198,2.73598,3655.0,3654.1,0.47328467]
[1736152142567,2.73606,3654.9,3654.2,0.44512367]
[1736152142698,8.498166,3654.9,3654.2,0.44512367]
[1736152142889,0.159,3654.8,3654.3,0.25060751]
[1736152143222,5.6316,3654.8,3654.3,0.47316803]
[1736152143428,5.6316,3654.8,3654.4,0.22256315]
[1736152143631,5.4726,3654.8,3654.5,0.22256052]
[1736152143842,5.4726,3654.8,3654.7,3.554]
[1736152144340,4.8563945,3654.8,3654.7,39.47978843]
[1736152144490,4.85310112,3654.8,3654.7,39.47978843]
[1736152144690,4.85310112,3654.8,3654.7,39.56539085]
[1736152144947,4.85310112,3654.8,3654.7,39.34283033]
[1736152145429,4.85310112,3654.8,3654.7,42.34283033]
[1736152145610,0.159,3655.6,3654.8,5.7361]
[1736152145800,0.159,3655.6,3654.9,0.93267084]
[1736152146202,0.159,3655.6,3655.0,3.10076055]
[1736152146419,0.159,3655.6,3655.1,0.02847653]
[1736152146901,0.159,3655.7,3655.1,2.76435653]
[1736152147227,0.159,3655.7,3655.2,0.08560242]
[1736152147425,0.159,3655.7,3655.3,0.02835163]
[1736152147625,0.159,3655.7,3655.2,0.4610053]
[1736152147828,0.159,3656.0,3655.3,0.02835163]
[1736152148025,0.159,3656.0,3655.3,0.11395405]
[1736152148513,0.159,3656.0,3655.4,0.08560242]
[1736152149131,0.159,3656.0,3655.5,0.08560242]
[1736152149627,2.73531,3655.9,3655.6,0.11315553]
[1736152149788,2.73531,3655.9,3655.6,0.08560242]
[1736152149993,0.159,3655.8,3655.6,0.08560242]
[1736152150220,0.159,3655.8,3655.7,0.08560242]
[1736152150622,0.159,3655.8,3654.8,5.73612]
[1736152150852,0.159,3655.8,3654.9,0.02799024]
[1736152151050,0.159,3655.8,3655.7,0.08556338]
[1736152153380,0.159,3655.8,3654.8,5.73612]
[1736152153585,0.159,3655.8,3654.9,1.43121793]
[1736152153789,0.159,3655.8,3654.9,1.51678325]
[1736152154390,0.159,3655.8,3655.0,0.08556532]
[1736152154569,0.159,3655.8,3655.0,2.13641834]
[1736152154779,0.159,3655.8,3655.1,0.02786533]
[1736152155140,0.159,3655.8,3655.2,35.0]
[1736152155345,0.159,3655.8,3655.2,36.114042]
[1736152155574,0.159,3655.8,3655.3,0.02774043]
[1736152155762,0.159,3655.8,3655.2,1.114042]
[1736152155963,0.159,3655.8,3655.3,0.02774043]
[1736152156200,0.159,3655.8,3655.4,35.0]
[1736152156550,2.73552,3655.6,3655.4,1.95749801]
[1736152156904,6.6981,3655.5,3655.4,1.04171697]
[1736152157245,2.73567,3655.4,3655.3,0.36554503]
[1736152157566,5.7359,3655.1,3655.0,2.2428469]
[1736152157895,2.73632,3654.6,3654.2,1.70609335]
[1736152158116,5.4719,3654.6,3654.2,1.70609335]
[1736152158614,2.73643,3654.4,3654.2,1.70609335]
[1736152158814,0.159,3654.3,3654.2,1.70609335]
[1736152158945,5.6309,3654.3,3654.2,1.70609335]
[1736152159450,3.6014646,3654.3,3653.5,4.12381482]
[1736152159650,3.7604646,3654.3,3653.5,4.12381482]
[1736152160163,3.7604646,3654.3,3653.7,1.88096792]
[1736152161391,4.41015406,3654.3,3653.4,2.2428469]
[1736152161552,2.73666,3654.1,3653.4,2.2428469]
[1736152161759,6.3381246,3654.1,3653.4,2.2428469]
[1736152162077,3.6014646,3654.1,3653.4,2.2428469]
[1736152162279,3.6014646,3654.1,3653.2,2.2428469]
[1736152162280,2.73681,3653.9,3653.2,2.2428469]
[1736152162853,2.73688,3653.8,3653.2,2.2428469]
[1736152163053,2.73673,3654.0,3653.2,2.2428469]
[1736152163566,6.3381946,3654.0,3653.2,2.2428469]
[1736152163767,6.3381946,3654.0,3653.1,0.005]
[1736152164377,6.3381946,3654.0,3653.2,0.02784098]
[1736152164597,0.159,3653.9,3653.2,0.02784098]
[1736152164895,3.7604646,3653.9,3653.2,0.02784098]
[1736152165791,4.5566406,3653.9,3653.2,0.02784098]
[1736152165953,3.7604646,3653.9,3653.2,0.02784098]
[1736152166153,2.73712,3653.5,3653.2,0.02784098]
[1736152166563,6.3385846,3653.5,3653.2,0.02784098]
[1736152166766,0.159,3653.4,3653.2,0.02784098]
[1736152167069,3.7604646,3653.4,3653.2,0.02784098]
[1736152167273,6.4976546,3653.4,3653.2,0.02784098]
[1736152167469,2.73725,3653.3,3653.2,0.02784098]
[1736152167671,6.3387146,3653.3,3652.5,1.14230857]
[1736152167973,6.3387146,3653.3,3653.2,0.03402679]
[1736152168154,6.3387146,3653.3,3652.5,1.14230857]
[1736152168594,6.3387146,3653.3,3652.6,0.03450427]
[1736152169295,6.3387146,3653.3,3652.7,0.03440958]
[1736152169651,6.3387146,3653.3,3652.4,1.14230857]
[1736152169860,6.3387146,3653.3,3652.5,0.03441164]
[1736152170100,6.3387146,3653.3,3652.3,1.14230857]
[1736152170400,6.3387146,3653.3,3652.6,0.03433204]
[1736152170812,0.158,3653.2,3652.3,1.14230857]
[1736152171015,3.7594646,3653.2,3652.7,0.03425245]
[1736152171304,3.7594646,3653.2,3652.8,0.03417286]
[1736152171603,3.7594646,3653.2,3652.3,1.14230857]
[1736152171774,6.4967946,3653.2,3652.3,1.14230857]
[1736152171979,6.4967946,3653.2,3652.2,1.4168196]
[1736152171980,6.4967946,3653.2,3652.2,4.4168196]
[1736152172193,6.4967946,3653.2,3652.4,0.03449124]
[1736152172395,7.4720946,3653.2,3652.5,0.03441164]
[1736152172612,4.7347646,3653.2,3652.5,0.03441164]
[1736152172757,4.7347646,3653.2,3652.2,1.4168196]
[1736152172758,2.73762,3652.8,3652.2,1.4168196]
[1736152172957,0.78411245,3653.1,3652.2,1.4168196]
[1736152173163,3.78411245,3653.1,3652.1,1.14230857]
[1736152173391,7.38557705,3653.1,3652.1,1.14230857]
[1736152173579,7.38557705,3653.1,3652.2,0.03671438]
[1736152173777,3.8999937,3653.0,3652.2,0.03671438]
[1736152174008,2.73777,3652.7,3652.2,0.03671438]
[1736152174312,2.73781,3652.6,3652.2,0.03671438]
[1736152174481,6.3392746,3652.6,3652.2,0.03671438]
[1736152175420,3.6014646,3652.6,3651.4,0.925]
[1736152175566,3.6014646,3652.6,3651.5,0.78061186]
[1736152175764,2.73792,3652.4,3651.5,0.03422903]
[1736152177181,6.3392446,3652.6,3651.6,35.0]
[1736152177761,2.73786,3652.5,3651.7,0.03406975]
[1736152178269,2.73793,3652.4,3651.4,0.925]
[1736152178500,2.73793,3652.4,3651.8,35.0]
[1736152179073,2.73793,3652.4,3651.9,0.03730154]
[1736152180657,6.3393946,3652.4,3651.9,0.03730154]
[1736152181707,3.6014646,3652.4,3651.9,0.03730154]
[1736152181906,3.6014646,3652.4,3651.9,35.0]
[1736152182249,3.6014646,3652.4,3651.4,3.66363]
[1736152182449,3.6014646,3652.4,3651.5,0.366363]
[1736152182611,3.6014646,3652.4,3651.6,35.03414939]
[1736152183516,3.6014646,3652.4,3651.6,37.77259939]
[1736152183712,0.158,3652.3,3651.8,2.73836]
[1736152184113,0.158,3652.3,3651.9,0.03730154]
[1736152184313,0.158,3652.3,3652.0,35.0]
[1736152184624,3.6014646,3652.4,3652.1,0.03405112]
[1736152184830,3.6014646,3652.4,3652.3,2.738]
[1736152185033,3.6014646,3652.4,3652.3,37.738]
[1736152185240,3.6014646,3652.4,3652.3,37.775227]
[1736152185960,3.6014646,3652.4,3652.3,35.037227]
[1736152186510,3.6014646,3652.4,3652.3,37.775227]
[1736152186750,3.6014646,3652.4,3652.3,35.037227]
[1736152187339,3.7594646,3652.4,3652.3,35.037227]
[1736152187734,3.7594646,3652.4,3652.3,0.037227]
[1736152188306,3.7594646,3652.4,3652.3,0.0370756]
[1736152188797,1.72933205,3652.4,3652.3,0.0370756]
[1736152189293,1.72933205,3652.4,3652.2,1.0068]
[1736152189495,1.72933205,3652.4,3652.3,0.0370756]
[1736152189898,1.72933205,3652.4,3652.2,1.0068]
[1736152190067,1.72933205,3652.4,3652.3,0.0370756]
[1736152190258,1.72933205,3652.4,3652.2,1.0068]
[1736152190462,1.72933205,3652.4,3652.3,0.03711345]
[1736152190664,1.72933205,3652.4,3652.2,1.0068]
[1736152190865,1.72933205,3652.4,3652.3,0.03711345]
[1736152191091,1.72933205,3652.4,3652.2,1.0068]
[1736152191265,1.72933205,3652.4,3652.3,0.03711345]
[1736152191464,1.72933205,3652.4,3652.2,1.0068]
[1736152191695,1.72933205,3652.4,3652.3,0.03711345]
[1736152191880,1.72933205,3652.4,3652.2,1.0068]
[1736152192094,1.72933205,3652.4,3652.3,0.03711345]
[1736152192576,1.72933205,3652.4,3651.9,35.0]
[1736152193065,1.72933205,3652.4,3652.0,0.03737618]
[1736152194464,1.72933205,3652.4,3651.8,1.0824]
[1736152194665,1.72933205,3652.4,3651.9,0.03755028]
[1736152199628,1.72933205,3652.4,3652.0,35.0]
[1736152200012,1.72933205,3652.4,3652.1,0.03399213]
[1736152201318,0.148,3652.3,3652.1,0.03399213]
[1736152207308,4.45734205,3652.3,3652.1,0.03399213]
[1736152208533,2.73807,3652.2,3652.1,0.03399213]
[1736152208733,5.33470205,3652.2,3652.1,0.03399213]
[1736152211238,5.88557864,3652.2,3652.1,0.03399213]
[1736152213664,2.59663205,3652.2,3652.1,0.03399213]
[1736152213852,1.71933205,3652.2,3652.1,0.03399213]
[1736152215268,2.52705883,3652.2,3652.1,0.03399213]
[1736152216275,2.37905883,3652.2,3652.1,0.03399213]
[1736152216476,1.71933205,3652.2,3652.1,0.03399213]
[1736152217876,1.71933205,3652.2,3652.1,0.03615116]
[1736152218110,1.71933205,3652.2,3651.8,1.12361971]
[1736152218286,4.45741205,3652.2,3652.1,0.03612955]
[1736152218613,5.22058041,3652.2,3651.6,1.13815652]
[1736152218797,5.22058041,3652.2,3652.1,0.03613495]
[1736152218999,5.22058041,3652.2,3651.6,1.13815652]
[1736152219195,5.22058041,3652.2,3652.1,0.03617819]
[1736152219410,5.22058041,3652.2,3651.6,1.13815652]
[1736152219603,0.52205804,3652.1,3651.7,0.94932349]
[1736152219770,2.73823,3652.0,3651.7,0.94932349]
[1736152219971,4.30956205,3652.0,3651.7,0.94932349]
[1736152220490,0.148,3651.9,3651.7,0.94932349]
[1736152220688,1.71933205,3651.9,3651.7,0.94932349]
[1736152221088,1.71933205,3651.9,3651.4,1.13815652]
[1736152222304,1.71933205,3651.9,3651.5,0.94912262]
[1736152223189,0.148,3651.8,3651.5,4.06716401]
[1736152223376,0.148,3651.8,3651.6,0.94912262]
[1736152223584,0.148,3651.8,3651.6,2.02582262]
[1736152224417,0.148,3651.8,3651.7,2.08727914]
[1736152225276,0.148,3651.8,3651.7,0.94912262]
[1736152225715,1.71933205,3651.8,3651.7,0.94912262]
[1736152227073,0.57712218,3651.8,3651.7,0.94912262]
[1736152227676,0.57712218,3651.8,3651.7,2.09650034]
[1736152228800,0.57712218,3651.8,3651.6,1.42335041]
[1736152229806,0.57712218,3651.8,3651.5,1.42335041]
[1736152230808,0.57712218,3651.8,3651.6,0.94881882]
[1736152231120,0.57712218,3651.8,3651.6,0.98566196]
[1736152231725,0.57712218,3651.8,3651.6,0.03684314]
[1736152232019,0.9234584,3651.8,3651.4,1.14737772]
[1736152232215,0.9234584,3651.8,3651.7,0.03675555]
[1736152232376,0.9234584,3651.8,3651.4,1.14737772]
[1736152232581,0.9234584,3651.8,3651.5,0.03693075]
[1736152232777,0.9234584,3651.8,3651.5,1.46024878]
[1736152232981,0.9234584,3651.8,3651.5,2.40912746]
[1736152233193,0.57712218,3651.8,3651.5,2.40912746]
[1736152233588,0.57712218,3651.8,3651.5,0.03693075]
[1736152235229,0.57712218,3651.8,3651.3,1.14737772]
[1736152235433,0.57712218,3651.8,3651.6,0.03690259]
[1736152235730,0.57712218,3651.8,3651.3,1.14737772]
[1736152235922,0.57712218,3651.8,3651.7,0.036815]
[1736152236403,0.57712218,3651.8,3651.3,1.14737772]
[1736152236607,0.57712218,3651.8,3651.7,0.036815]
[1736152236824,0.57712218,3651.8,3651.3,1.14737772]
[1736152236993,0.57712218,3651.8,3651.7,0.036815]
[1736152237194,0.57712218,3651.8,3651.3,1.14737772]
[1736152237395,0.57712218,3651.8,3651.4,0.03707781]
[1736152237624,1.56492218,3651.8,3651.4,1.46004335]
[1736152237824,0.44512822,3651.7,3651.4,1.46004335]
[1736152238132,0.57712218,3651.7,3651.4,1.46004335]
[1736152238692,2.7386,3651.5,3651.4,1.46004335]
[1736152238888,3.31572218,3651.5,3651.4,0.03707781]
[1736152239094,3.31572218,3651.5,3651.2,1.14737772]
[1736152239333,3.31572218,3651.5,3651.4,0.03707781]
[1736152239532,2.73867,3651.4,3651.3,0.03716542]
[1736152239749,2.73875,3651.3,3651.2,1.14737772]
[1736152240347,2.73875,3651.3,3651.1,1.42343565]
[1736152240560,4.03548011,3651.3,3651.1,1.42343565]
[1736152241150,4.03548011,3651.3,3650.5,1.14737772]
[1736152241480,4.03548011,3651.3,3650.5,1.18329319]
[1736152242208,1.29673011,3651.3,3650.5,1.18329319]
[1736152242352,2.73882,3651.2,3650.6,2.37175335]
[1736152242702,3.84410406,3651.2,3650.6,2.37175335]
[1736152244016,3.84410406,3651.2,3650.6,1.42305201]
[1736152244709,1.10528406,3651.2,3650.6,1.42305201]
[1736152245095,0.9983,3651.1,3650.6,1.42305201]
[1736152245278,1.57542218,3651.1,3650.5,1.42305201]
[1736152245699,1.57542218,3651.1,3650.5,1.45896748]
[1736152245903,2.13162138,3651.1,3650.5,1.45896748]
[1736152246717,2.13162138,3651.1,3650.6,0.94870573]
[1736152247064,0.57712218,3651.1,3650.6,0.94870573]
[1736152248181,0.57712218,3651.1,3650.7,0.94870573]
[1736152248353,0.57712218,3651.1,3650.7,0.98475945]
[1736152248705,0.57712218,3651.1,3650.7,0.03605372]
[1736152248911,0.57712218,3651.1,3650.6,0.94870573]
[1736152249213,0.33159722,3651.0,3650.7,0.03605372]
[1736152249432,0.33159722,3651.0,3650.6,0.94870573]
[1736152249725,0.33159722,3651.0,3650.8,0.0363499]
[1736152250046,0.33159722,3651.0,3650.9,0.03626226]
[1736152250213,3.31605218,3651.1,3650.5,0.94870573]
[1736152250405,3.31605218,3651.1,3650.6,0.03652519]
[1736152251451,3.31605218,3651.1,3650.4,1.42305201]
[1736152252051,3.31605218,3651.1,3650.5,0.03662365]
[1736152252659,0.57712218,3651.1,3650.8,2.73907]
[1736152252796,0.57712218,3651.1,3650.9,2.73904]
[1736152253001,0.57712218,3651.1,3651.0,0.03617463]
[1736152253199,0.57712218,3651.1,3651.0,35.03617463]
[1736152254018,0.57712218,3651.1,3650.8,0.27756937]
[1736152254338,0.57712218,3651.1,3651.0,3.51883811]
[1736152255031,0.57712218,3651.1,3651.0,6.25780811]
[1736152256693,0.57712218,3651.1,3651.0,8.71470738]
[1736152257040,0.139,3651.2,3651.1,2.7389]
[1736152257640,0.139,3651.4,3651.1,2.7389]
[1736152257811,5.6166,3651.4,3651.1,2.7389]
[1736152258809,5.6166,3651.4,3651.2,2.37146039]
[1736152259637,5.4776,3651.4,3651.3,4.37505]
[1736152259837,5.4776,3651.4,3651.3,45.95759678]
[1736152260168,5.4776,3651.4,3651.3,45.85939678]
[1736152260538,5.4776,3651.4,3651.3,45.85900966]
[1736152261271,5.4776,3651.4,3651.3,52.02417108]
[1736152261428,5.4776,3651.4,3651.3,52.80718326]
[1736152261628,5.4776,3651.4,3651.3,50.17343198]
[1736152264243,5.4776,3651.4,3651.3,13.8404198]
[1736152264873,5.4776,3651.4,3651.3,6.56147746]
[1736152265847,5.4776,3651.4,3651.3,2.37146039]
[1736152267181,4.33534721,3651.4,3651.3,2.37146039]
[1736152268271,4.33534721,3651.4,3651.3,3.51811684]
[1736152269490,4.33534721,3651.4,3651.2,0.94840838]
[1736152270587,4.33534721,3651.4,3651.3,0.94840838]
[1736152272097,4.9915661,3651.4,3651.3,0.94840838]
[1736152272306,7.7302361,3651.4,3651.3,0.94840838]
[1736152272800,7.7302361,3651.4,3651.0,2.56970846]
[1736152273998,7.7302361,3651.4,3650.8,0.94866152]
[1736152275406,7.7302361,3651.4,3650.7,0.94866152]
[1736152275575,0.99570778,3651.3,3650.7,0.94866152]
[1736152276177,2.73885,3651.2,3650.8,0.94866152]
[1736152276778,0.99570778,3651.3,3650.8,0.94866152]
[1736152277398,0.99570778,3651.3,3650.6,0.94866152]
[1736152278293,0.37811302,3651.2,3650.6,0.94866152]
[1736152278803,0.37811302,3651.2,3650.7,0.94866152]
[1736152279469,3.11694302,3651.2,3650.7,0.94866152]
[1736152279813,7.45229023,3651.2,3650.8,0.94866152]
[1736152280664,2.73905,3650.9,3650.6,1.42305201]
[1736152280872,4.007055,3650.8,3650.5,1.42305201]
[1736152281972,4.007055,3650.8,3650.3,0.94873753]
[1736152282373,2.73928,3650.6,3650.3,0.94873753]
[1736152282626,0.134,3650.5,3650.3,0.94873753]
[1736152282829,0.134,3650.5,3650.1,0.94873753]
[1736152283115,1.0008,3650.2,3650.1,0.94873753]
[1736152283320,4.56133672,3650.2,3650.1,0.94873753]
[1736152283774,8.89668393,3650.2,3650.1,0.94873753]
[1736152283975,2.73974,3650.0,3649.5,0.94873753]
[1736152284324,2.73981,3649.9,3649.5,0.94873753]
[1736152284630,7.07515721,3649.9,3649.5,0.94873753]
[1736152284926,2.74002,3649.6,3649.5,0.94873753]
[1736152285087,7.07536721,3649.6,3649.5,0.94873753]
[1736152285472,4.33534721,3649.6,3648.9,2.09539398]
[1736152285977,2.7401,3649.5,3648.9,2.09539398]
[1736152286229,7.07544721,3649.5,3648.9,2.09539398]
[1736152286402,8.01399753,3649.5,3648.9,2.09539398]
[1736152286929,5.27389753,3649.5,3648.4,2.7409]
[1736152289217,8.01399753,3649.5,3648.4,2.7409]
[1736152289574,8.01399753,3649.5,3648.3,1.51145174]
[1736152289575,5.27389753,3649.5,3648.3,4.25244174]
[1736152289775,5.27389753,3649.5,3648.3,1.51145174]
[1736152289974,0.9913,3649.2,3648.3,1.51145174]
[1736152290176,0.134,3649.1,3648.3,1.51145174]